bitfinex-derivatives/quotes_BTCF0:USTF0_20250930
["timestamp","ask_amount","ask_price","bid_price","bid_amount"]
[1759225318849,1.0225503,113150.0,113140.0,0.50534401]
[1759225319151,1.0225503,113150.0,113140.0,0.0054]
[1759225319351,1.8383903,113150.0,113140.0,0.0054]
[1759225319658,2.24999191,113150.0,113140.0,0.005]
[1759225319850,2.24999191,113150.0,113140.0,0.0054]
[1759225320351,2.28155911,113150.0,113140.0,0.0054]
[1759225320549,2.28155911,113150.0,113140.0,0.005]
[1759225320855,2.28151911,113150.0,113140.0,0.0054]
[1759225322251,1.46571911,113150.0,113140.0,0.0054]
[1759225322451,2.28127911,113150.0,113140.0,0.0054]
[1759225323751,2.28123911,113150.0,113140.0,0.0054]
[1759225323952,1.8696375,113150.0,113140.0,0.0054]
[1759225324262,2.28103911,113150.0,113140.0,0.0054]
[1759225324753,1.8693575,113150.0,113140.0,0.0054]
[1759225324952,2.28095911,113150.0,113140.0,0.0054]
[1759225325654,1.0541175,113150.0,113140.0,0.0054]
[1759225325858,2.28071911,113150.0,113140.0,0.0054]
[1759225326257,2.19836871,113150.0,113140.0,0.0054]
[1759225326861,1.38336871,113150.0,113140.0,0.0054]
[1759225327060,2.19840871,113150.0,113140.0,0.0054]
[1759225328654,2.52789992,113150.0,113140.0,0.0054]
[1759225328854,2.52757992,113150.0,113140.0,0.0054]
[1759225329062,0.0883516,113130.0,113120.0,0.41760371]
[1759225329265,0.38117121,113130.0,113120.0,0.74765492]
[1759225329463,1.29537141,113130.0,113120.0,0.74765492]
[1759225330055,0.47773141,113130.0,113120.0,0.74765492]
[1759225330455,1.29585141,113130.0,113120.0,0.74765492]
[1759225330656,0.52373141,113130.0,113120.0,0.75565492]
[1759225330960,1.34181141,113130.0,113120.0,0.75565492]
[1759225331161,1.3214402,113130.0,113120.0,0.75565492]
[1759225331463,0.5033602,113130.0,113120.0,0.75565492]
[1759225331660,1.3214402,113130.0,113120.0,0.75565492]
[1759225331863,0.5033602,113130.0,113120.0,0.75565492]
[1759225332166,1.3212802,113130.0,113120.0,0.75565492]
[1759225332870,1.43004051,113130.0,113120.0,0.0971525]
[1759225333058,1.43004051,113130.0,113120.0,0.75565492]
[1759225335363,1.75929172,113130.0,113120.0,0.75565492]
[1759225335561,1.43004051,113130.0,113120.0,0.75565492]
[1759225335757,2.12009172,113130.0,113120.0,0.0088]
[1759225335961,2.84934293,113130.0,113120.0,0.0088]
[1759225336266,2.52009172,113130.0,113120.0,0.0084]
[1759225336463,2.19084051,113130.0,113120.0,0.0084]
[1759225336768,2.52009172,113130.0,113120.0,0.0084]
[1759225338170,2.55165892,113130.0,113120.0,0.0084]
[1759225339458,2.55165892,113130.0,113120.0,0.008]
[1759225339662,2.55165892,113130.0,113120.0,0.0084]
[1759225339663,2.88091013,113130.0,113120.0,0.0084]
[1759225339963,2.55165892,113130.0,113120.0,0.008]
[1759225340470,2.55165892,113130.0,113120.0,0.0084]
[1759225341270,2.50565892,113130.0,113120.0,0.0004]
[1759225341467,1.71373892,113130.0,113120.0,0.0064]
[1759225341663,2.53085892,113130.0,113120.0,0.0064]
[1759225341869,1.71373892,113130.0,113120.0,0.0064]
[1759225342069,2.53097892,113130.0,113120.0,0.0064]
[1759225342269,2.49941172,113130.0,113120.0,0.0064]
[1759225342867,1.65617172,113130.0,113120.0,0.0004]
[1759225343076,2.47337172,113130.0,113120.0,0.0004]
[1759225343573,1.65617172,113130.0,113120.0,0.0004]
[1759225343775,2.47325172,113130.0,113120.0,0.0004]
[1759225344565,1.65617172,113130.0,113120.0,0.0004]
[1759225344776,2.47297172,113130.0,113120.0,0.0004]
[1759225345075,1.65617172,113130.0,113120.0,0.0004]
[1759225345468,2.14360051,113130.0,113120.0,0.0004]
[1759225345669,1.32692051,113130.0,113120.0,0.0004]
[1759225345874,2.47297172,113130.0,113120.0,0.0004]
[1759225346672,1.32692051,113130.0,113120.0,0.0004]
[1759225346875,2.47305172,113130.0,113120.0,0.0004]
[1759225347074,1.65617172,113130.0,113120.0,0.0004]
[1759225347275,2.47337172,113130.0,113120.0,0.0004]
[1759225347475,2.14408051,113130.0,113120.0,0.0004]
[1759225347680,2.47333172,113130.0,113120.0,0.0004]
[1759225348179,2.47329172,113130.0,113120.0,0.0004]
[1759225348774,2.14404051,113130.0,113120.0,0.0004]
[1759225349074,2.47329172,113130.0,113120.0,0.0004]
[1759225349573,1.32692051,113130.0,113120.0,0.0004]
[1759225349781,2.47413172,113130.0,113120.0,0.0004]
[1759225350080,1.65617172,113130.0,113120.0,0.0004]
[1759225350376,0.92692051,113130.0,113120.0,0.74726192]
[1759225350781,1.74468051,113130.0,113120.0,0.65890242]
[1759225350973,1.74468051,113130.0,113120.0,0.74726192]
[1759225351172,0.92692051,113130.0,113120.0,0.74726192]
[1759225351373,1.74464051,113130.0,113120.0,0.74726192]
[1759225351873,0.92692051,113130.0,113120.0,0.74726192]
[1759225352073,1.74452051,113130.0,113120.0,0.74726192]
[1759225352268,0.92692051,113130.0,113120.0,0.74726192]
[1759225352474,1.7239518,113130.0,113120.0,0.74726192]
[1759225353380,1.7239518,113130.0,113120.0,0.0887595]
[1759225353681,1.7239518,113130.0,113120.0,0.74726192]
[1759225353881,1.76027771,113130.0,113120.0,0.75926192]
[1759225354475,1.74427771,113130.0,113120.0,0.74726192]
[1759225354781,0.94283771,113130.0,113120.0,0.75926192]
[1759225355177,1.76111771,113130.0,113120.0,0.75926192]
[1759225355370,1.74511771,113130.0,113120.0,0.74726192]
[1759225355786,0.92683771,113130.0,113120.0,0.74726192]
[1759225356084,1.74495771,113130.0,113120.0,0.74726192]
[1759225356282,1.75395771,113130.0,113120.0,0.74726192]
[1759225356683,1.74495771,113130.0,113120.0,0.74726192]
[1759225356878,1.75695771,113130.0,113120.0,0.74726192]
[1759225357087,1.74495771,113130.0,113120.0,0.0887595]
[1759225357281,0.92683771,113130.0,113120.0,0.74726192]
[1759225357481,1.74471771,113130.0,113120.0,0.74726192]
[1759225357790,1.75171771,113130.0,113120.0,0.75926192]
[1759225358285,1.75171771,113130.0,113120.0,0.4300285]
[1759225358579,1.74471771,113130.0,113120.0,0.4250285]
[1759225358884,1.75163771,113130.0,113120.0,0.4250285]
[1759225359286,1.75163771,113130.0,113120.0,0.0957595]
[1759225359588,1.65507751,113130.0,113120.0,0.4250285]
[1759225360086,1.98434651,113130.0,113120.0,0.0957595]
[1759225360480,1.98434651,113130.0,113120.0,0.0074]
[1759225360690,1.75163771,113130.0,113120.0,0.0957595]
[1759225360882,2.08090671,113130.0,113120.0,0.0957595]
[1759225361083,2.08090671,113130.0,113120.0,0.0074]
[1759225361587,2.08090671,113130.0,113120.0,0.007]
[1759225361787,1.98434651,113130.0,113120.0,0.007]
[1759225362180,1.98434651,113130.0,113120.0,0.0074]
[1759225362377,1.98434651,113130.0,113120.0,0.007]
[1759225362778,1.98434651,113130.0,113120.0,0.0074]
[1759225366192,2.08090671,113130.0,113120.0,0.0074]
[1759225366687,2.08210671,113130.0,113120.0,0.0074]
[1759225367084,2.08212248,113130.0,113120.0,0.0074]
[1759225367587,0.93385348,113130.0,113120.0,0.0074]
[1759225367788,1.77329139,113130.0,113120.0,0.0074]
[1759225367986,2.10256039,113130.0,113120.0,0.0074]
[1759225368490,1.28368039,113130.0,113120.0,0.0074]
[1759225368690,2.10236039,113130.0,113120.0,0.0074]
[1759225369393,2.10220039,113130.0,113120.0,0.0074]
[1759225369596,1.28368039,113130.0,113120.0,0.0074]
[1759225369790,2.10204039,113130.0,113120.0,0.0074]
[1759225370688,2.10184039,113130.0,113120.0,0.0074]
[1759225373901,1.28368039,113130.0,113120.0,0.0074]
[1759225374109,2.10152039,113130.0,113120.0,0.0074]
[1759225374408,2.10124039,113130.0,113120.0,0.0074]
[1759225375606,1.28368039,113130.0,113120.0,0.0074]
[1759225375809,2.10092039,113130.0,113120.0,0.0074]
[1759225377609,1.28368039,113130.0,113120.0,0.0074]
[1759225377810,2.10060039,113130.0,113120.0,0.0074]
[1759225378206,2.10056039,113130.0,113120.0,0.0074]
[1759225378411,2.10048039,113130.0,113120.0,0.0074]
[1759225378711,2.10044039,113130.0,113120.0,0.0074]
[1759225378909,2.42970939,113130.0,113120.0,0.0074]
[1759225379101,0.0883673,113110.0,113100.0,0.13582738]
[1759225379305,1.5951163,113110.0,113100.0,0.46509638]
[1759225379509,1.6916765,113110.0,113100.0,0.46589638]
[1759225379708,1.3624075,113110.0,113100.0,0.46589638]
[1759225379912,2.07282757,113110.0,113100.0,0.0008]
[1759225380209,0.0883829,113090.0,113080.0,0.13593416]
[1759225380405,1.2657029,113090.0,113080.0,0.13594016]
[1759225380602,1.5949719,113090.0,113080.0,0.13594016]
[1759225381007,1.6785321,113090.0,113080.0,0.13594016]
[1759225381309,1.3492631,113090.0,113080.0,0.13594016]
[1759225381615,1.72180771,113090.0,113080.0,0.13594016]
[1759225381811,1.73080771,113090.0,113080.0,0.15034016]
[1759225382113,1.40153871,113090.0,113080.0,0.15034016]
[1759225382613,1.47309689,113090.0,113080.0,0.15034016]
[1759225382809,1.46409689,113090.0,113080.0,0.13634016]
[1759225383414,1.46409689,113090.0,113080.0,0.08888378]
[1759225384514,1.46409689,113090.0,113080.0,0.41815278]
[1759225385308,1.46393689,113090.0,113080.0,0.41815278]
[1759225385514,1.46393689,113090.0,113080.0,0.41775278]
[1759225386415,1.46393689,113090.0,113080.0,0.41815278]
[1759225386611,1.46393689,113090.0,113080.0,0.08888378]
[1759225386811,1.79320589,113090.0,113080.0,0.00049308]
[1759225387118,1.81351984,113090.0,113080.0,9.308e-05]
[1759225387419,1.81351984,113090.0,113080.0,0.00049308]
[1759225387817,2.21351984,113090.0,113080.0,0.00049308]
[1759225388014,2.21351984,113090.0,113080.0,9.308e-05]
[1759225388319,2.21351984,113090.0,113080.0,0.00049308]
[1759225389122,0.0883985,113070.0,113060.0,0.0884046]
[1759225389315,1.2669185,113070.0,113060.0,0.0884046]
[1759225389518,1.2669185,113070.0,113060.0,0.0888046]
[1759225389810,1.2668785,113070.0,113060.0,0.0888046]
[1759225390015,0.44928063,113070.0,113060.0,0.4180736]
[1759225390222,1.26692063,113070.0,113060.0,0.4180736]
[1759225391217,2.05354983,113070.0,113060.0,0.0004]
[1759225391417,1.23590983,113070.0,113060.0,0.0004]
[1759225391612,0.0884063,113060.0,113050.0,0.329269]
[1759225391920,0.4492063,113060.0,113050.0,0.330069]
[1759225392216,0.5457665,113060.0,113050.0,0.330069]
[1759225392615,0.5457665,113060.0,113050.0,0.4184832]
[1759225393219,0.5607665,113060.0,113050.0,0.4184832]
[1759225393410,1.3779265,113060.0,113050.0,0.4184832]
[1759225393812,1.3778865,113060.0,113050.0,0.4184832]
[1759225394620,1.3777265,113060.0,113050.0,0.4184832]
[1759225395623,1.2893202,113060.0,113050.0,0.4184832]
[1759225395817,0.015,113060.0,113050.0,0.8184832]
[1759225396021,0.1034063,113060.0,113050.0,0.8184832]
[1759225396319,0.4642063,113060.0,113050.0,0.8184832]
[1759225397719,0.4642063,113060.0,113050.0,0.0892142]
[1759225398022,0.8900355,113060.0,113050.0,0.4176832]
[1759225398218,0.5607665,113060.0,113050.0,0.4180832]
[1759225398419,0.5607665,113060.0,113050.0,0.0888142]
[1759225398726,0.5607665,113060.0,113050.0,0.4180832]
[1759225399021,1.3776465,113060.0,113050.0,0.4180832]
[1759225399220,1.0168465,113060.0,113050.0,0.4180832]
[1759225399417,0.1999665,113060.0,113050.0,0.4180832]
[1759225399619,0.1115602,113060.0,113050.0,0.4180832]
[1759225399821,0.015,113060.0,113050.0,0.8180832]
[1759225400524,0.015,113060.0,113050.0,1.1788832]
[1759225402023,0.015,113060.0,113050.0,1.090469]
[1759225402325,0.8900355,113060.0,113050.0,0.0004]
[1759225402525,0.0884141,113050.0,113040.0,0.4176868]
[1759225402719,0.44931679,113050.0,113040.0,0.4176868]
[1759225402927,0.44931679,113050.0,113040.0,0.4180868]
[1759225403719,0.51971417,113050.0,113040.0,0.4180868]
[1759225403916,0.52571417,113050.0,113040.0,0.4180868]
[1759225404526,0.51971417,113050.0,113040.0,0.4180868]
[1759225404722,0.52871417,113050.0,113040.0,0.4180868]
[1759225406028,0.52871417,113050.0,113040.0,0.0888178]
[1759225406227,0.52871417,113050.0,113040.0,0.4180868]
[1759225409129,0.54928075,113050.0,113040.0,0.4180868]
[1759225409534,0.52871417,113050.0,113040.0,0.4180868]
[1759225409832,0.62527437,113050.0,113040.0,0.4180868]
[1759225410031,0.62527437,113050.0,113040.0,0.4176868]
[1759225410633,0.62527437,113050.0,113040.0,0.4180868]
[1759225412534,0.62527437,113050.0,113040.0,0.4180909]
[1759225413229,0.62527437,113050.0,113040.0,0.0888219]
[1759225413432,0.62527437,113050.0,113040.0,0.4180909]
[1759225414432,0.62527437,113050.0,113040.0,0.0888219]
[1759225414625,0.62527437,113050.0,113040.0,0.0884219]
[1759225415027,0.95454337,113050.0,113040.0,0.0884219]
[1759225415332,1.77026337,113050.0,113040.0,0.0888219]
[1759225415730,1.77026337,113050.0,113040.0,0.4180909]
[1759225415931,1.44099437,113050.0,113040.0,0.4180909]
[1759225417136,1.44067437,113050.0,113040.0,0.4180909]
[1759225418238,0.95501217,113050.0,113040.0,0.46601608]
[1759225418438,1.77037217,113050.0,113040.0,0.46601608]
[1759225418840,1.77037217,113050.0,113040.0,0.4185597]
[1759225419233,0.95501217,113050.0,113040.0,0.46601608]
[1759225419430,1.67345197,113050.0,113040.0,0.46601608]
[1759225420438,1.67341197,113050.0,113040.0,0.46601608]
[1759225421140,1.67333197,113050.0,113040.0,0.46601608]
[1759225421436,1.67317197,113050.0,113040.0,0.46601608]
[1759225421635,1.67313197,113050.0,113040.0,0.46601608]
[1759225421837,1.67313197,113050.0,113040.0,0.79575388]
[1759225422037,1.34343417,113050.0,113040.0,0.79575388]
[1759225422242,1.67317197,113050.0,113040.0,0.79575388]
[1759225422441,0.85845197,113050.0,113040.0,0.79575388]
[1759225422640,1.67305197,113050.0,113040.0,0.79575388]
[1759225423043,1.67305197,113050.0,113040.0,0.13627828]
[1759225423240,1.67305197,113050.0,113040.0,0.79575388]
[1759225423640,1.67297197,113050.0,113040.0,0.79575388]
[1759225423839,1.67297197,113050.0,113040.0,0.7482975]
[1759225424243,1.34323417,113050.0,113040.0,0.7482975]
[1759225424544,1.67297197,113050.0,113040.0,0.7482975]
[1759225424838,0.85845197,113050.0,113040.0,0.7482975]
[1759225425042,1.67285197,113050.0,113040.0,0.7482975]
[1759225425844,1.34311417,113050.0,113040.0,0.7482975]
[1759225426044,1.67285197,113050.0,113040.0,0.7482975]
[1759225426545,1.69315214,113050.0,113040.0,0.7482975]
[1759225429248,1.67285197,113050.0,113040.0,0.7482975]
[1759225429447,1.69315453,113050.0,113040.0,0.0888219]
[1759225429648,1.69315453,113050.0,113040.0,0.7482975]
[1759225429849,1.67285197,113050.0,113040.0,0.7482975]
[1759225430247,1.69315457,113050.0,113040.0,0.79575388]
[1759225430448,1.69315457,113050.0,113040.0,0.46601608]
[1759225432052,1.69315457,113050.0,113040.0,0.13627828]
[1759225432350,1.69315457,113050.0,113040.0,0.46601608]
[1759225435452,0.87875457,113050.0,113040.0,0.46601608]
[1759225435658,1.69167457,113050.0,113040.0,0.46601608]
[1759225437154,1.69167457,113050.0,113040.0,0.13627828]
[1759225437360,1.69167457,113050.0,113040.0,0.46601608]
[1759225439158,0.87875457,113050.0,113040.0,0.46601608]
[1759225439459,1.69119457,113050.0,113040.0,0.46601608]
[1759225440163,1.69119457,113050.0,113040.0,0.13627828]
[1759225440354,1.69119457,113050.0,113040.0,0.46601608]
[1759225440753,1.36145677,113050.0,113040.0,0.46601608]
[1759225440958,1.69119457,113050.0,113040.0,0.46601608]
[1759225441357,1.67089197,113050.0,113040.0,0.46601608]
[1759225442066,1.67089197,113050.0,113040.0,0.13627828]
[1759225442260,1.6912251,113050.0,113040.0,0.46601608]
[1759225442866,1.6912251,113050.0,113040.0,0.13627828]
[1759225443067,1.6912251,113050.0,113040.0,0.46601608]
[1759225443759,0.8787851,113050.0,113040.0,0.46601608]
[1759225444265,1.6908651,113050.0,113040.0,0.46601608]
[1759225445960,1.6908651,113050.0,113040.0,0.13627828]
[1759225446155,1.3611273,113050.0,113040.0,0.13627828]
[1759225446367,1.6908651,113050.0,113040.0,0.46601608]
[1759225446662,1.6908651,113050.0,113040.0,0.13627828]
[1759225446872,1.6908651,113050.0,113040.0,0.46601608]
[1759225448471,1.3611273,113050.0,113040.0,0.46601608]
[1759225448870,1.6908651,113050.0,113040.0,0.46601608]
[1759225449273,1.67053197,113050.0,113040.0,0.46601608]
[1759225449770,1.69087269,113050.0,113040.0,0.46601608]
[1759225449971,1.69087269,113050.0,113040.0,0.37759418]
[1759225450160,1.69087269,113050.0,113040.0,0.46601568]
[1759225451462,1.69087269,113050.0,113040.0,0.04785638]
[1759225451463,1.71107556,113050.0,113040.0,0.04785638]
[1759225451662,1.80763576,113050.0,113040.0,0.04785638]
[1759225452071,1.78743289,113050.0,113040.0,0.04745638]
[1759225452272,1.78743289,113050.0,113040.0,0.04785638]
[1759225453274,1.79015289,113050.0,113040.0,0.0004]
[1759225453574,1.79011289,113050.0,113040.0,0.0004]
[1759225454864,2.51985069,113050.0,113040.0,0.0004]
[1759225455068,0.0884215,113040.0,113030.0,0.46561938]
[1759225455272,1.1086971,113040.0,113030.0,0.13668158]
[1759225455473,0.8755195,113040.0,113030.0,0.46641938]
[1759225455669,0.8755195,113040.0,113030.0,0.37719418]
[1759225455975,1.60534867,113040.0,113030.0,0.13588578]
[1759225456175,1.60534867,113040.0,113030.0,0.13628578]
[1759225456373,1.61134867,113040.0,113030.0,0.13628578]
[1759225456571,1.61134867,113040.0,113030.0,0.04785638]
[1759225456970,1.61134867,113040.0,113030.0,0.04745638]
[1759225457379,1.61134867,113040.0,113030.0,0.04785638]
[1759225457680,1.62334867,113040.0,113030.0,0.04785638]
[1759225457871,1.62334867,113040.0,113030.0,0.37759418]
[1759225457872,2.43786867,113040.0,113030.0,0.37759418]
[1759225458178,2.10781087,113040.0,113030.0,0.46602358]
[1759225458477,2.08981087,113040.0,113030.0,0.46602358]
[1759225458680,2.09881087,113040.0,113030.0,0.46602358]
[1759225459573,2.44889116,113040.0,113030.0,0.0004]
[1759225460075,0.0884281,113030.0,113020.0,0.37719418]
[1759225460279,1.5928859,113030.0,113020.0,0.37799418]
[1759225460480,1.6894461,113030.0,113020.0,0.37799418]
[1759225460675,1.6894461,113030.0,113020.0,0.3305378]
[1759225460676,1.70978388,113030.0,113020.0,0.3305378]
[1759225461473,1.6894461,113030.0,113020.0,0.3305378]
[1759225462286,1.73603339,113030.0,113020.0,0.0008]
[1759225462582,0.088436,113020.0,113010.0,0.4659591]
[1759225462779,0.44931128,113020.0,113010.0,0.3775158]
[1759225462976,0.87560928,113020.0,113010.0,0.3775158]
[1759225463378,1.23713265,113020.0,113010.0,0.3779158]
[1759225463579,0.90739485,113020.0,113010.0,0.3775158]
[1759225464183,0.91339485,113020.0,113010.0,0.3779158]
[1759225464384,1.72691485,113020.0,113010.0,0.3779158]
[1759225464890,0.91339485,113020.0,113010.0,0.3779158]
[1759225465084,1.72679485,113020.0,113010.0,0.3779158]
[1759225466085,0.58365705,113020.0,113010.0,0.4663597]
[1759225466280,1.39681705,113020.0,113010.0,0.4663597]
[1759225466487,1.72655485,113020.0,113010.0,0.4663597]
[1759225466685,1.72667485,113020.0,113010.0,0.4663597]
[1759225466982,1.72067485,113020.0,113010.0,0.4663597]
[1759225467780,0.90739485,113020.0,113010.0,0.4663597]
[1759225468085,1.72963485,113020.0,113010.0,0.4663597]
[1759225468581,0.91639485,113020.0,113010.0,0.4663597]
[1759225468774,1.72959485,113020.0,113010.0,0.4663597]
[1759225468979,1.72959485,113020.0,113010.0,0.1366219]
[1759225469285,1.72959485,113020.0,113010.0,0.4663597]
[1759225469479,1.72959485,113020.0,113010.0,0.3779158]
[1759225469680,0.58665705,113020.0,113010.0,0.4663596]
[1759225469888,1.72947485,113020.0,113010.0,0.4663596]
[1759225470186,0.91639485,113020.0,113010.0,0.4663596]
[1759225470385,1.72947485,113020.0,113010.0,0.4663596]
[1759225470779,0.91639485,113020.0,113010.0,0.4663596]
[1759225471086,1.72931485,113020.0,113010.0,0.4663596]
[1759225471387,0.91639485,113020.0,113010.0,0.4663596]
[1759225471588,1.72931485,113020.0,113010.0,0.4663596]
[1759225471887,0.91843548,113020.0,113010.0,0.4663596]
[1759225472090,0.94931092,113020.0,113010.0,0.4663596]
[1759225472281,0.94931092,113020.0,113010.0,0.1366218]
[1759225472480,0.94931092,113020.0,113010.0,0.4663596]
[1759225472688,1.03774702,113020.0,113010.0,0.4663596]
[1759225473592,1.03774702,113020.0,113010.0,0.1366218]
[1759225473886,1.03774702,113020.0,113010.0,0.41890322]
[1759225474582,1.03774702,113020.0,113010.0,0.41850322]
[1759225475388,1.36748482,113020.0,113010.0,0.41890322]
[1759225475591,1.36748482,113020.0,113010.0,0.41850322]
[1759225475885,1.36748482,113020.0,113010.0,0.41890322]
[1759225476090,1.36748482,113020.0,113010.0,0.41850322]
[1759225476391,0.94923092,113020.0,113010.0,0.41890322]
[1759225476692,0.94907092,113020.0,113010.0,0.41890322]
[1759225477291,0.94907092,113020.0,113010.0,0.4663596]
[1759225477991,0.13651092,113020.0,113010.0,0.4663596]
[1759225479389,0.03995072,113020.0,113010.0,0.1366218]
[1759225479694,0.03995072,113020.0,113010.0,0.8271596]
[1759225480194,0.03995072,113020.0,113010.0,0.82727284]
[1759225481396,0.03995072,113020.0,113010.0,1.15712388]
[1759225481597,0.03995072,113020.0,113010.0,0.4974218]
[1759225481796,0.03995072,113020.0,113010.0,0.82727284]
[1759225481986,0.13651092,113020.0,113010.0,0.82727284]
[1759225482296,0.13651092,113020.0,113010.0,1.15712388]
[1759225483092,0.13651092,113020.0,113010.0,1.18910743]
[1759225483288,0.13651092,113020.0,113010.0,1.55712388]
[1759225483494,0.3608,113040.0,113030.0,0.0884281]
[1759225483690,0.51961298,113050.0,113040.0,0.0884203]
[1759225483691,1.33197298,113050.0,113040.0,0.0884203]
[1759225483890,1.35234379,113050.0,113040.0,0.41827134]
[1759225484596,1.35234379,113050.0,113040.0,0.0884203]
[1759225485093,1.36334379,113050.0,113040.0,0.0884203]
[1759225485294,1.69319483,113050.0,113040.0,0.0884203]
[1759225485798,1.72515948,113050.0,113040.0,0.0884203]
[1759225486599,1.71415948,113050.0,113040.0,0.0884203]
[1759225487197,1.38430844,113050.0,113040.0,0.0884203]
[1759225487791,1.39230844,113050.0,113040.0,0.0994203]
[1759225488397,1.72215948,113050.0,113040.0,0.0994203]
[1759225488896,1.63374388,113050.0,113040.0,0.0994203]
[1759225489096,1.40041304,113050.0,113040.0,0.42927134]
[1759225490495,0.56772223,113050.0,113040.0,0.42927134]
[1759225490692,0.20692223,113050.0,113040.0,0.80683903]
[1759225490892,0.20692223,113050.0,113040.0,0.47698799]
[1759225492102,0.20692223,113050.0,113040.0,0.80683903]
[1759225492304,0.02948888,113050.0,113040.0,1.56763903]
[1759225492496,0.00290692,113050.0,113040.0,1.58352364]
[1759225493000,0.00290692,113050.0,113040.0,2.39580364]
[1759225493801,0.00290692,113050.0,113040.0,2.33220238]
[1759225494698,0.00290692,113050.0,113040.0,2.36336555]
[1759225495304,0.00290692,113050.0,113040.0,2.41090288]
[1759225495896,0.00290692,113050.0,113040.0,2.37973971]
[1759225496803,0.00290692,113050.0,113040.0,2.37969971]
[1759225498801,0.00290692,113050.0,113040.0,1.56749971]
[1759225499004,0.00290692,113050.0,113040.0,2.37965971]
[1759225499406,0.00290692,113050.0,113040.0,1.56749971]
[1759225499594,0.00290692,113050.0,113040.0,2.37965971]
[1759225500300,0.00290692,113050.0,113040.0,1.56749971]
[1759225500799,0.00290692,113050.0,113040.0,0.14699763]
[1759225500800,0.09946712,113050.0,113040.0,0.14699763]
[1759225501003,0.09946712,113050.0,113040.0,1.24179134]
[1759225501403,0.09946712,113050.0,113040.0,1.97164238]
[1759225501706,0.09946712,113050.0,113040.0,2.38001971]
[1759225502802,0.17125053,113050.0,113040.0,2.38001971]
[1759225503304,0.09946712,113050.0,113040.0,2.38001971]
[1759225503510,0.09946712,113050.0,113040.0,1.52032238]
[1759225503702,0.09946712,113050.0,113040.0,2.33244238]
[1759225503904,0.09946712,113050.0,113040.0,2.38001971]
[1759225504710,0.09946712,113050.0,113040.0,2.37997971]
[1759225505113,0.09946712,113050.0,113040.0,1.72027763]
[1759225505305,0.09946712,113050.0,113040.0,2.37997971]
[1759225505815,0.09946712,113050.0,113040.0,1.56789971]
[1759225506113,0.09946712,113050.0,113040.0,2.37997971]
[1759225506312,0.09946712,113050.0,113040.0,1.56789971]
[1759225506518,0.09946712,113050.0,113040.0,2.37997971]
[1759225507115,0.09946712,113050.0,113040.0,1.56789971]
[1759225507318,0.16902287,113050.0,113040.0,2.37997971]
[1759225509318,0.16902287,113050.0,113040.0,1.56789971]
[1759225509714,0.16902287,113050.0,113040.0,2.37993971]
[1759225511914,0.16902287,113050.0,113040.0,1.56789971]
[1759225512115,0.16902287,113050.0,113040.0,2.37993971]
[1759225513725,0.16902287,113050.0,113040.0,1.56789971]
[1759225513923,0.16902287,113050.0,113040.0,2.37993971]
[1759225514128,0.16902287,113050.0,113040.0,2.01913971]
[1759225514426,0.16902287,113050.0,113040.0,2.37993971]
[1759225515723,0.25743527,113050.0,113040.0,1.28924867]
[1759225516923,0.16902287,113050.0,113040.0,1.61909971]
[1759225518840,0.16902287,113050.0,113040.0,1.97989971]
[1759225519938,0.16902287,113050.0,113040.0,1.16789971]
[1759225520139,0.16902287,113050.0,113040.0,1.97989971]
[1759225520339,0.16902287,113050.0,113040.0,1.93232238]
[1759225522041,0.16902287,113050.0,113040.0,1.99592364]
[1759225522642,0.16902287,113050.0,113040.0,1.57152238]
[1759225522838,0.16902287,113050.0,113040.0,1.24167134]
[1759225523542,0.25743527,113050.0,113040.0,1.24167134]
[1759225523932,0.25743527,113050.0,113040.0,1.28941217]
[1759225525837,0.25743527,113050.0,113040.0,0.95956113]
[1759225526144,0.25743527,113050.0,113040.0,0.47741217]
[1759225526444,0.27781842,113050.0,113040.0,1.28941217]
[1759225526838,0.63861842,113050.0,113040.0,1.28941217]
[1759225527439,0.27781842,113050.0,113040.0,1.28941217]
[1759225527639,0.27781842,113050.0,113040.0,0.14756113]
[1759225527840,0.27781842,113050.0,113040.0,1.61926321]
[1759225528339,0.27781842,113050.0,113040.0,0.80726321]
[1759225528540,0.27781842,113050.0,113040.0,1.61886321]
[1759225528740,0.27781842,113050.0,113040.0,1.28941217]
[1759225529649,0.27781842,113050.0,113040.0,0.38899187]
[1759225529942,1.3337077,113050.0,113040.0,0.05914083]
[1759225530147,1.35409409,113050.0,113040.0,0.011]
[1759225530344,0.0884204,113040.0,113030.0,0.73907149]
[1759225530551,0.0884282,113030.0,113020.0,0.37759187]
[1759225530843,0.77907924,113030.0,113020.0,0.04854083]
[1759225531043,0.77907924,113030.0,113020.0,0.86050083]
[1759225531246,0.77907924,113030.0,113020.0,0.85970083]
[1759225531445,0.77907924,113030.0,113020.0,0.86010083]
[1759225531646,0.4492282,113030.0,113020.0,0.86010083]
[1759225531847,0.4462282,113030.0,113020.0,1.18995187]
[1759225532152,0.4462282,113030.0,113020.0,0.37799187]
[1759225532354,0.79643186,113030.0,113020.0,0.81236]
[1759225532648,0.46058082,113030.0,113020.0,0.0004]
[1759225532853,0.46958082,113030.0,113020.0,0.0094]
[1759225533054,0.77907924,113030.0,113020.0,0.0094]
[1759225533851,0.77907924,113030.0,113020.0,0.05714083]
[1759225534750,1.17907924,113030.0,113020.0,0.05714083]
[1759225535048,1.19931121,113030.0,113020.0,0.009]
[1759225535254,1.19931121,113030.0,113020.0,0.0094]
[1759225536549,0.86946017,113030.0,113020.0,0.0978359]
[1759225536854,0.86946017,113030.0,113020.0,0.33925104]
[1759225537049,0.86946017,113030.0,113020.0,0.0094]
[1759225537950,1.19931121,113030.0,113020.0,0.0094]
[1759225538155,2.01135121,113030.0,113020.0,0.0094]
[1759225539055,1.19931121,113030.0,113020.0,0.0094]
[1759225539257,2.01135121,113030.0,113020.0,0.0094]
[1759225539460,2.01135121,113030.0,113020.0,0.009]
[1759225539461,1.61135121,113030.0,113020.0,0.009]
[1759225539759,1.61135121,113030.0,113020.0,0.0094]
[1759225540146,0.79931121,113030.0,113020.0,0.0094]
[1759225540457,1.61144537,113030.0,113020.0,0.0094]
[1759225541050,1.61144537,113030.0,113020.0,0.009]
[1759225541546,2.34139057,113030.0,113020.0,0.009]
[1759225541750,1.94139057,113030.0,113020.0,0.009]
[1759225541951,0.0884361,113020.0,113010.0,0.04677213]
[1759225542151,0.0884439,113010.0,113000.0,1.09581025]
[1759225542453,1.5912291,113010.0,113000.0,1.09581025]
[1759225542754,0.7791891,113010.0,113000.0,1.09661025]
[1759225542956,1.1791891,113010.0,113000.0,1.09661025]
[1759225543150,1.9912691,113010.0,113000.0,1.09581025]
[1759225543350,1.9912691,113010.0,113000.0,1.06552485]
[1759225543558,2.3312143,113010.0,113000.0,0.98714635]
[1759225543760,2.3212143,113010.0,113000.0,0.98674635]
[1759225544059,2.39021455,113010.0,113000.0,0.98714635]
[1759225544361,2.39021455,113010.0,113000.0,0.98674635]
[1759225544558,1.57813455,113010.0,113000.0,0.98674635]
[1759225544761,2.39021455,113010.0,113000.0,0.98714635]
[1759225544960,2.40021455,113010.0,113000.0,0.98714635]